Cogmind - Beta 15 @@@ ROGUE MODE // 2025.05.06 @ 21:20:16 Player: XDRM Result: Destroyed by P-70 Sage with Tesla Rifle Performance ------------- Evolutions (3) 1500 Regions Visited (8) 1600 Robots Destroyed (81) 405 Value Destroyed (4304) 4304 Prototype IDs (0) 0 Alien Tech Used (0) 0 Bonus (2210) 2210 TOTAL SCORE: 10019 Bonus ------- High Alert Combat Kills 383 Follower Combat Kills 240 Entered Garrisons 600 Used RIF Installer 1000 Friendly Fire -13 Cogmind --------- Core Integrity 0/700 Matter 282/300 Energy 99/100 System Corruption 7% Temperature Cool (0) Movement Core (50) Location -7/Garrison Parts ------- > --- POWER (1) -------- (None) > --- PROPULSION (4) --- (None) > --- UTILITY (4) ------ Transport Network Coupler > --- WEAPON (4) ------- (None) > --- INVENTORY (5) ---- Relay Coupler [Swarmer] (23) Relay Coupler [Grunt] (23) Relay Coupler [Grunt] (22) Relay Coupler [Demolisher] (22) Relay Coupler [Specialist] (17) Peak State ------------ > --- POWER ------------ Light Nuclear Core > --- PROPULSION ------- Aluminum Leg Aluminum Leg Carbon-fiber Leg Flexi-carbon Leg > --- UTILITY ---------- Improved Heat Sink Advanced Targeting Computer Relay Coupler [Brawler] Relay Coupler [Heavy] > --- WEAPON ----------- Autogun Gauss Rifle Bore Cannon Datajack > --- INVENTORY -------- Relay Coupler [Swarmer] Relay Coupler [Grunt] Relay Coupler [Sentry] Relay Coupler [Demolisher] Relay Coupler [Specialist] [Rating: 42] Favorites ----------- Power Light Nuclear Core Engine Improved Ion Engine Power Core Light Nuclear Core Propulsion Wheel Leg Aluminum Leg Wheel Wheel Flight Unit VTOL Module Utility Improved Heat Sink Device Improved Heat Sink Storage Small Storage Unit Processor Advanced Targeting Computer Hackware Relay Coupler [Brawler] Protection Light Armor Plating Weapon Gauss Rifle Ballistic Gun Gauss Rifle Ballistic Cannon Bore Cannon Launcher Subdweller Shrapnel Launcher Slashing Weapon Scythe Special Melee Weapon Datajack Build | -11 -10 -10 -8 -8 -7 -7 -7 -7 ------- Run | Yrd Mat Sub Mat Gar Fac Gar Fac Gar Slots Evolved 6 | . . . 4 . 2 . . . Power . | . . . . . . . . . Propulsion 2 | . . . . . 2 . . . Utility 2 | . . . 2 . . . . . Weapon 2 | . . . 2 . . . . . Parts Attached 79 | 7 2 2 17 12 . 31 6 2 Power 8 | 1 . . 3 1 . 2 1 . Engine 4 | 1 . . 1 1 . . 1 . Core 4 | . . . 2 . . 2 . . Reactor . | . . . . . . . . . Propulsion 22 | 2 . . 2 4 . 13 1 . Treads . | . . . . . . . . . Leg 9 | . . . . 4 . 5 . . Wheel 4 | 2 . . 2 . . . . . Hover . | . . . . . . . . . Flight 9 | . . . . . . 8 1 . Utility 27 | 2 . 1 7 4 . 9 3 1 Device 5 | 1 . . 3 1 . . . . Storage 1 | 1 . . . . . . . . Processor 3 | . . . 2 . . . 1 . Hackware 11 | . . . . 1 . 8 1 1 Protection 7 | . . 1 2 2 . 1 1 . Artifact . | . . . . . . . . . Weapon 22 | 2 2 1 5 3 . 7 1 1 Energy Gun . | . . . . . . . . . Energy Cannon . | . . . . . . . . . Ballistic Gun 16 | 2 2 . 4 3 . 5 . . Ballistic Cannon 2 | . . . 1 . . 1 . . Launcher 1 | . . 1 . . . . . . Special Weapon . | . . . . . . . . . Impact Weapon . | . . . . . . . . . Slashing Weapon 1 | . . . . . . . 1 . Piercing Weapon . | . . . . . . . . . Special Melee Weapon 2 | . . . . . . 1 . 1 Unidentified Prototypes . | . . . . . . . . . Parts Lost 31 | . . 2 . 7 . 9 3 10 Power 5 | . . 1 . 1 . 1 1 1 Propulsion 9 | . . . . 2 . 3 1 3 Utility 5 | . . . . 2 . 1 . 2 Weapon 12 | . . 1 . 2 . 4 1 4 Highest Loss Streak 9 | . . 1 . 3 . 3 3 9 To Critical Strikes 1 | . . . . . . 1 . . Average Backups 4 | 2 5 6 6 4 5 4 4 5 Power . | . 1 1 . . . . . . Propulsion . | . 2 2 2 . . . . . Utility 3 | . 1 2 2 2 4 3 4 4 Weapon . | . 1 1 1 . . . . . Tool/Special . | . . . . . . . . . Unused Backups 21 | . . . 6 6 1 2 1 5 Power 2 | . . . . 2 . . . . Propulsion 3 | . . . 2 1 . . . . Utility 12 | . . . 1 2 1 2 1 5 Weapon 4 | . . . 3 1 . . . . Tool/Special . | . . . . . . . . . Average Slot Usage (%) 90 | . 99 92 95 94 84 88 86 50 Engine 5 | . 14 8 4 6 7 2 1 2 Core 3 | . . . 4 2 . 4 5 . Leg 8 | . . . . 9 15 16 . . Wheel 7 | . 28 28 18 6 . . . . Flight 4 | . . . . . . 9 28 14 Device 9 | . 14 2 11 15 7 4 . . Storage 2 | . 14 14 5 . . . . . Processor 5 | . . . 7 9 7 2 5 7 Hackware 5 | . . . . . 7 15 16 5 Protection 6 | . . 11 9 8 7 1 5 4 Ballistic Gun 26 | . 27 16 33 35 30 17 13 3 Special Melee Weapon 2 | . . . . . . 6 7 4 Peak Build Rating 42 | 7 10 10 34 33 30 42 28 24 Average Rating 25 | 5 8 9 28 27 30 32 24 14 On Entrance 18 | . 7 10 10 33 30 30 25 24 Naked Turns . | . . . . . . . . . Heaviest Build 40 | 11 15 26 40 31 23 25 14 12 Greatest Support 58 | 26 26 26 26 23 23 58 18 12 Greatest Overweight (x) 7 | . . . 1 7 . 4 . 1 Average Overweight (x) . | . . . . . . . . . Largest Inventory Capacity 8 | 8 8 8 8 5 5 5 5 5 Average Capacity 5 | 7 8 8 6 5 5 5 5 5 Most Carried 8 | 4 7 7 8 5 5 5 5 5 Average Carried 4 | 2 5 6 6 4 4 4 4 4 Final Capacity 8 | 8 8 8 5 5 5 5 5 5 Final Carried 7 | 4 7 7 4 5 5 5 5 5 Class Distribution -------------------- 42% | Scavenger-Gunner 17% | Gunner 13% | Bothacker-Sprinter 13% | Mutant 5% | Bothacker-Gunner Dominant Class ---------------- Mutant | -10/Materials Mutant | -10/Subcaves Gunner | -8/Materials Scavenger-Gunner | -8/Garrison Scavenger-Gunner | -7/Factory Scavenger-Gunner | -7/Garrison Bothacker-Sprinter | -7/Factory Bothacker-Sprinter | -7/Garrison Resources | -11 -10 -10 -8 -8 -7 -7 -7 -7 ----------- Run | Yrd Mat Sub Mat Gar Fac Gar Fac Gar Matter Collected 3201 | 310 88 132 740 929 . 875 77 50 Remotely . | . . . . . . . . . Salvage Created 3081 | 206 115 98 866 1073 . 565 131 27 Parts 191 | 19 9 7 58 60 . 29 9 . Haulers Intercepted 4 | . . . 2 . . . 2 . Recyclers Shooed . | . . . . . . . . . Parts Field Recycled 7 | . . . 7 . . . . . Retrieved Matter 42 | . . . 42 . . . . . Parts Self-Destructed 1 | . . 1 . . . . . . Prevented . | . . . . . . . . . Kills | -11 -10 -10 -8 -8 -7 -7 -7 -7 ------- Run | Yrd Mat Sub Mat Gar Fac Gar Fac Gar Combat Hostiles Destroyed 57 | . 3 3 13 23 . 14 . 1 Melee 1 | . . . . . . . . 1 Guns 51 | . 3 1 10 23 . 14 . . AOE 5 | . . 2 3 . . . . . Classes Destroyed 15 | 3 4 2 4 1 . 1 . . Worker 5 | 2 . . 3 . . . . . Builder 3 | . 1 . 1 . . . 1 . Tunneler 6 | 5 . . 1 . . . . . Hauler 4 | . . . 2 . . . 2 . Recycler 1 | 1 . . . . . . . . Operator 1 | . 1 . . . . . . . Watcher 3 | . . . 3 . . . . . Swarmer 13 | . 1 . 3 3 . 5 . 1 Grunt 27 | . 2 . 5 12 . 8 . . Brawler 1 | . . . . 1 . . . . Duelist 4 | . . . 1 3 . . . . Sentry 7 | . . 1 2 4 . . . . Specialist 2 | . . . 2 . . . . . Hunter 2 | . . . . . . 2 . . Subdweller 2 | . . 2 . . . . . . Best Kill Streak 5 | 5 3 2 5 5 . 4 1 1 Combat Bots Only 5 | . 1 2 4 5 . 4 . 1 Max Kills in Single Turn 4 | 1 1 2 4 2 . 2 1 1 Gunslinging 1 | . . . 1 . . 1 . . Exploded 3 | . . 2 3 . . . . . Melee 1 | . . . . . . . . 1 Uniques/NPCs Destroyed . | . . . . . . . . . Combat | -11 -10 -10 -8 -8 -7 -7 -7 -7 -------- Run | Yrd Mat Sub Mat Gar Fac Gar Fac Gar Hostile Shots Fired 367 | . 7 12 50 73 . 108 12 105 Missed 128 | . 2 4 22 21 . 35 6 38 Hits 239 | . 5 8 28 52 . 73 6 67 Melee 3 | . . . . 3 . . . . Projectile 236 | . 5 8 28 49 . 73 6 67 AOE 6 | . . 6 . . . . . . Critical Strikes 20 | . . . 3 9 . 3 . 5 Damage Taken 4179 | . 68 361 393 1043 . 1130 149 1035 Core 1007 | . 35 127 31 101 . 148 . 565 Absorbed by Shields 16 | . . . . . . . . 16 Core Remaining (%) 70 | 100 . 35 . 76 . . . . Volleys Fired 215 | 20 12 14 34 63 . 59 7 6 Largest 4 | 2 2 2 4 4 . 3 2 1 Hottest 112 | 40 46 63 112 112 . 99 43 23 Shots Fired 604 | 40 24 18 125 250 . 128 13 6 Gun 585 | 40 24 14 124 250 . 114 13 6 Cannon 14 | . . . . . . 14 . . Launcher 5 | . . 4 1 . . . . . Special . | . . . . . . . . . Kinetic 604 | 40 24 18 125 250 . 128 13 6 Thermal . | . . . . . . . . . Explosive . | . . . . . . . . . Electromagnetic . | . . . . . . . . . Robot Hit Streak 31 | 10 13 5 16 31 . 23 5 2 Robot Miss Streak 7 | 2 2 2 2 3 . 7 2 2 Penetration Max 1 | . . . 1 1 . 1 . . Secondary Targets 10 | . 1 . 2 4 . 3 . . Max Gunslinging Chain 2 | . 1 . 1 1 . 2 . . Shots Hit Robots 353 | 27 19 11 75 131 . 70 13 7 Core Hits 149 | 15 6 5 36 53 . 29 4 1 Critical Kills 3 | . . . . 2 . 1 . . Critical Parts Destroyed 4 | . . . . 2 . 1 1 . Critical Strikes 8 | . . . 1 4 . 2 1 . Destroy 8 | . . . 1 4 . 2 1 . Melee Attacks 38 | . . . . . . 25 5 8 Impact . | . . . . . . . . . Slashing 5 | . . . . . . . . 5 Piercing . | . . . . . . . . . Sneak Attacks 7 | . . . . . . 1 5 1 Combat Hostiles 2 | . . . . . . 1 . 1 Follow-up Attacks . | . . . . . . . . . Damage Inflicted 5975 | 214 315 407 1634 2077 . 1034 119 175 Guns 5396 | 214 309 150 1512 2077 . 979 119 36 Cannons 55 | . . . . . . 55 . . Explosions 379 | . . 257 122 . . . . . Melee 139 | . . . . . . . . 139 Ramming 6 | . 6 . . . . . . . Kinetic 5830 | 214 309 407 1634 2077 . 1034 119 36 Thermal . | . . . . . . . . . Explosive . | . . . . . . . . . Electromagnetic . | . . . . . . . . . Impact . | . . . . . . . . . Slashing 139 | . . . . . . . . 139 Piercing . | . . . . . . . . . Highest Corruption 7 | . . . . 1 . . 2 7 Average Corruption 1 | . . . . 1 . . 1 3 Corruption Purged . | . . . . . . . . . Corruption Blocked . | . . . . . . . . . Effects 10 | . . . . 5 . . 1 4 Message Errors 1 | . . . . . . . 1 . Matter Fused 6 | . . . . 2 . . . 4 Heat Flow Errors 2 | . . . . 2 . . . . Energy Discharges 1 | . . . . 1 . . . . Overload Shots . | . . . . . . . . . Overflow Damage 40 | . . . . . . . . 40 Projectiles . | . . . . . . . . . Explosions . | . . . . . . . . . Melee 40 | . . . . . . . . 40 Knockbacks 1 | . . . . . . 1 . . Impact . | . . . . . . . . . Kinetic 1 | . . . . . . 1 . . Secondary . | . . . . . . . . . Self-Inflicted Damage 3 | . 3 . . . . . . . Shots . | . . . . . . . . . Rammed 1 | . 1 . . . . . . . Targets Rammed 1 | . 1 . . . . . . . Kicked . | . . . . . . . . . Crushed . | . . . . . . . . . Highest Temperature 370 | . 5 . 370 260 . 12 4 . Average Temperature 65 | . 3 . 105 29 . 4 4 . Received Heat Transfer 900 | . 39 18 135 477 . 213 . 18 Effects 1 | . . . 1 . . . . . Interference 1 | . . . 1 . . . . . Siege Activations . | . . . . . . . . . Martial Activations . | . . . . . . . . . Shielding Activations . | . . . . . . . . . Robots Disrupted . | . . . . . . . . . Combat Hostiles . | . . . . . . . . . Robots Corrupted . | . . . . . . . . . Combat Hostiles . | . . . . . . . . . Parts Fried . | . . . . . . . . . Impact Corruptions . | . . . . . . . . . Robots Melted . | . . . . . . . . . Combat Hostiles . | . . . . . . . . . Parts Melted . | . . . . . . . . . Heat Transferred . | . . . . . . . . . Parts Sabotaged . | . . . . . . . . . Parts Stolen . | . . . . . . . . . Parts Stripped . | . . . . . . . . . Power Chain Reactions . | . . . . . . . . . Alert | -11 -10 -10 -8 -8 -7 -7 -7 -7 ------- Run | Yrd Mat Sub Mat Gar Fac Gar Fac Gar Maximum Alert Level 4 | . . . 1 4 2 4 2 2 Low Security (%) 20 | 100 100 . 76 2 . . . . Level 1 14 | . . . 23 25 . . . 24 Level 2 33 | . . . . 35 100 32 100 75 Level 3 24 | . . . . 22 . 58 . . Level 4 7 | . . . . 14 . 9 . . Level 5 . | . . . . . . . . . High Security . | . . . . . . . . . Max Security . | . . . . . . . . . Peak Influence 1162 | 20 40 . 229 1157 633 1162 620 596 Initial 606 | . . . . 128 606 422 596 353 Average 557 | 4 15 . 138 670 613 809 564 451 Influence Increases 3107 | 40 80 20 474 1099 27 945 79 343 Destroy 0b10 Robot/C 1260 | . 60 20 260 500 . 380 . 40 Destroy 0b10 Robot/NC 115 | 40 10 . 50 . . . 15 . Destroy Leader 134 | . 10 . 70 20 . 30 4 . Allied During Kill 38 | . . . . 3 . 31 . 4 Successful Hack 128 | . . . 8 65 27 14 . 14 Disable Machine 75 | . . . 45 30 . . . . Anti-Garrison Action 850 | . . . . 400 . 300 . 150 Destroy Structure 102 | . . . 11 51 . 40 . . Partial Spotted 30 | . . . 15 . . 15 . . Lose Combat Pursuer 375 | . . . 15 30 . 135 60 135 Influence Decreases 2511 | 40 60 40 276 140 581 411 711 252 Entered New Map 1505 | . . 10 . 70 551 181 541 152 Time Decay 556 | 40 60 30 276 . 30 . 120 . Lost Part 290 | . . . . 70 . 90 30 100 Lost Ally 160 | . . . . . . 140 20 . Squads Dispatched 6 | . 3 . 2 . . . 1 . Investigation 3 | . 2 . . . . . 1 . Extermination . | . . . . . . . . . Reinforcement 3 | . 1 . 2 . . . . . Assault . | . . . . . . . . . Garrison . | . . . . . . . . . Intercept . | . . . . . . . . . Searches Triggered . | . . . . . . . . . Construction Impeded 1 | . . . 1 . . . . . Haulers Reinforced . | . . . . . . . . . Active Scanning Responses . | . . . . . . . . . Cargo Convoy Interrupts . | . . . . . . . . . Stealth | -11 -10 -10 -8 -8 -7 -7 -7 -7 --------- Run | Yrd Mat Sub Mat Gar Fac Gar Fac Gar Distress Signals 2 | . 1 . . . . . 1 . Communications Jammed . | . . . . . . . . . Distress Signals . | . . . . . . . . . Times Spotted 123 | . 14 6 14 25 . 40 5 19 Peak Tracking Total 8 | . 7 2 3 5 . 6 3 8 Tactical Retreats 17 | . . . 1 2 . 8 3 3 Traps | -11 -10 -10 -8 -8 -7 -7 -7 -7 ------- Run | Yrd Mat Sub Mat Gar Fac Gar Fac Gar Traps Triggered 11 | . . . . 5 . 3 . 3 Indirectly . | . . . . . . . . . Trap Hack Attempts . | . . . . . . . . . Triggered . | . . . . . . . . . Disarmed . | . . . . . . . . . Reprogrammed . | . . . . . . . . . Reused . | . . . . . . . . . Traps Extracted . | . . . . . . . . . Installed 9 | . . . . 9 . . . . Triggered . | . . . . . . . . . Most Traps Carried 5 | . . . . 5 . . . . Machines | -11 -10 -10 -8 -8 -7 -7 -7 -7 ---------- Run | Yrd Mat Sub Mat Gar Fac Gar Fac Gar Machines Disabled 15 | . . . 3 7 . 4 . 1 Max in Single Turn 1 | . . . 1 1 . 1 . 1 Garrison Relay 9 | . . . . 4 . 4 . 1 Machines Repaired . | . . . . . . . . . Machines Dismantled . | . . . . . . . . . Machines Sabotaged . | . . . . . . . . . Overloaded Fab Kills . | . . . . . . . . . Hacking | -11 -10 -10 -8 -8 -7 -7 -7 -7 --------- Run | Yrd Mat Sub Mat Gar Fac Gar Fac Gar Machines Accessed 18 | . . . 3 5 2 3 3 2 Terminals 13 | . . . 1 5 1 3 1 2 Fabricators . | . . . . . . . . . Repair Stations . | . . . . . . . . . Recycling Units 1 | . . . . . . . 1 . Scanalyzers 1 | . . . 1 . . . . . Garrison Access 3 | . . . 1 . 1 . 1 . Total Hacks 34 | . . . 6 10 3 7 4 4 Successful 15 | . . . 4 5 3 1 1 1 Failed 19 | . . . 2 5 . 6 3 3 Catastrophic 8 | . . . . 2 . 2 2 2 Database Lockouts . | . . . . . . . . . Manual 4 | . . . 3 . . . 1 . Terminals 26 | . . . 3 10 1 7 1 4 Fabricators . | . . . . . . . . . Repair Stations . | . . . . . . . . . Recycling Units 2 | . . . . . . . 2 . Scanalyzers 2 | . . . 2 . . . . . Garrison Access 4 | . . . 1 . 2 . 1 . Terminal Hacks 8 | . . . . 5 1 1 . 1 Robot Analysis 1 | . . . . . 1 . . . Open Door 1 | . . . . 1 . . . . Emergency Access Points 3 | . . . . 1 . 1 . 1 Garrison Registry 1 | . . . . 1 . . . . Patrol Navigation 1 | . . . . 1 . . . . Security Stations 1 | . . . . 1 . . . . Fabricator Hacks . | . . . . . . . . . Repair Station Hacks . | . . . . . . . . . Recycling Unit Hacks . | . . . . . . . . . Scanalyzer 2 | . . . 2 . . . . . Insert Component 1 | . . . 1 . . . . . Analyze 1 | . . . 1 . . . . . Garrison Access Hacks 4 | . . . 1 . 2 . 1 . Unlock Access 3 | . . . 1 . 1 . 1 . Coupler Status 1 | . . . . . 1 . . . Unauthorized Hacks 1 | . . . 1 . . . . . Terminals 1 | . . . 1 . . . . . Botnet 1 | . . . 1 . . . . . Fabricators . | . . . . . . . . . Repair Stations . | . . . . . . . . . Recycling Units . | . . . . . . . . . Scanalyzers . | . . . . . . . . . Garrison Access . | . . . . . . . . . Data Cores Recovered . | . . . . . . . . . Used . | . . . . . . . . . Hacking Detections 16 | . . . 2 5 1 3 3 2 Full Trace Events 7 | . . . . 2 . 2 1 2 Feedback Events 2 | . . . . 1 . . 1 . Corruption 2 | . . . . 1 . . 1 . Feedback Blocked . | . . . . . . . . . Robot Schematics Acquired . | . . . . . . . . . Robots Built . | . . . . . . . . . Authchips . | . . . . . . . . . Time . | . . . . . . . . . Total Robot Build Rating . | . . . . . . . . . Part Schematics Acquired 1 | . . . 1 . . . . . Parts Built . | . . . . . . . . . Authchips . | . . . . . . . . . Time . | . . . . . . . . . Total Part Build Rating . | . . . . . . . . . Parts Repaired . | . . . . . . . . . Time . | . . . . . . . . . Parts Recycled . | . . . . . . . . . Recycled Matter . | . . . . . . . . . Retrieved Matter . | . . . . . . . . . Retrieved Components . | . . . . . . . . . Parts Scanalyzed 1 | . . . 1 . . . . . Part Schematics Acquired 1 | . . . 1 . . . . . Parts Damaged . | . . . . . . . . . Bothacking | -11 -10 -10 -8 -8 -7 -7 -7 -7 ------------ Run | Yrd Mat Sub Mat Gar Fac Gar Fac Gar Used RIF Installer 2 | . . . . 1 . 1 . . Zone Cloak 1 | . . . . . . 1 . . Robots Hacked 17 | . . . . . . 13 2 2 Non-combat 2 | . . . . . . . 2 . Combat 15 | . . . . . . 13 . 2 Robot Hacks Applied 21 | . . . . . . 14 5 2 parse_system 1 | . . . . . . 1 . . randomize_corridors 1 | . . . . . . . 1 . map_earth 1 | . . . . . . . 1 . link_fov 1 | . . . . . . . 1 . amplify_resonance 2 | . . . . . . . 2 . go_dormant 2 | . . . . . . 2 . . streamctrl_high 5 | . . . . . . 4 . 1 formatsys_high 8 | . . . . . . 7 . 1 Relay Couplers Released 35 | . . . . 15 . 16 . 4 Machine Destruction 35 | . . . . 15 . 16 . 4 Attached 11 | . . . . 1 . 8 1 1 Fabnet Peak Effective % . | . . . . . . . . . Robots Rewired . | . . . . . . . . . Allies Hacked 2 | . . . . . . 2 . . Hacks Repelled . | . . . . . . . . . Allies | -11 -10 -10 -8 -8 -7 -7 -7 -7 -------- Run | Yrd Mat Sub Mat Gar Fac Gar Fac Gar Total Allies 13 | . . . . 1 . 10 . 2 Largest Group 5 | . . . . 1 1 5 1 2 Highest-Rated Group 114 | . . . . 39 39 114 21 24 Highest-Rated Ally 39 | . . . . 39 39 39 21 12 Total Orders 1 | . . . . . . 1 . . FOLLOW 1 | . . . . . . 1 . . Ally Attacks 74 | . . . . 7 . 57 4 6 Total Damage 1013 | . . . . 131 . 776 25 81 Kills 8 | . . . . 2 . 5 . 1 Allies Corrupted . | . . . . . . . . . Allies Melted . | . . . . . . . . . Intel | -11 -10 -10 -8 -8 -7 -7 -7 -7 ------- Run | Yrd Mat Sub Mat Gar Fac Gar Fac Gar Active Infowar (turns) 680 | 46 205 30 . . . . 199 200 Seismic 281 | 46 205 30 . . . . . . T.N.C. 399 | . . . . . . . 199 200 Robot Analysis Total 1 | . . . . . 1 . . . Derelict Logs Recovered . | . . . . . . . . . Drone Launches . | . . . . . . . . . Drone Recoveries . | . . . . . . . . . Exploration | -11 -10 -10 -8 -8 -7 -7 -7 -7 ------------- Run | Yrd Mat Sub Mat Gar Fac Gar Fac Gar Turns Passed 4488 | 143 205 201 628 1682 74 1111 244 200 Spaces Moved 3936 | 88 145 178 438 1072 59 963 712 281 Core 121 | 5 . . . 3 . 1 . 112 Treads . | . . . . . . . . . Legs 1032 | . . . . 553 59 420 . . Wheels 1360 | 83 145 178 438 516 . . . . Hover . | . . . . . . . . . Flight 1423 | . . . . . . 542 712 169 Fastest Speed 26 | 50 90 90 90 80 120 26 26 29 Average Speed 82 | 87 90 90 99 125 120 72 27 39 Slowest Speed 400 | 90 90 90 105 400 120 275 29 100 Overloaded Moves . | . . . . . . . . . Propulsion Burnouts . | . . . . . . . . . Robots Hopped . | . . . . . . . . . Potential Cave-ins . | . . . . . . . . . Cave-ins Triggered . | . . . . . . . . . Exploration Rate (%) 34 | 4 40 18 34 95 1 64 16 37 Regions Visited 8 Branch Regions 1 Pre-discovered Areas 1 | . . 1 . . . . . . Known Exits Taken 3 | . . . 1 . 1 . 1 . Unknown Exits Taken 3 | 1 1 1 . . . . . . Scrap Searched . | . . . . . . . . . Spaces Dug 1 | . . . . 1 . . . . Terrain Destroyed 55 | . . 31 8 10 . 6 . . Melee . | . . . . . . . . . Projectile 16 | . . . . 10 . 6 . . AOE 38 | . . 31 7 . . . . . Terrain Rammed . | . . . . . . . . . Walls Destroyed . | . . . . . . . . . Machines Disabled . | . . . . . . . . . Actions | -11 -10 -10 -8 -8 -7 -7 -7 -7 --------- Run | Yrd Mat Sub Mat Gar Fac Gar Fac Gar Total 4761 | 118 195 200 552 1265 62 1265 748 356 Wait 263 | . 31 5 36 52 2 119 10 8 Move 3929 | 87 144 177 438 1071 58 962 711 281 Hop . | . . . . . . . . . Pick Up 58 | 4 3 1 7 20 1 18 3 1 Fast Attach 47 | 7 2 1 9 8 . 14 4 2 Attach 15 | . . 1 2 1 . 10 1 . Detach 3 | . . . 2 . . 1 . . Swap 24 | . . . 7 4 . 11 2 . Drop 76 | . 2 1 17 22 1 26 5 2 Fire 215 | 20 12 14 34 63 . 59 7 6 Melee 38 | . . . . . . 25 5 8 Ram 1 | . 1 . . . . . . . Kick . | . . . . . . . . . Crush . | . . . . . . . . . Escape Stasis 83 | . . . . 15 . 20 . 48 Rewire . | . . . . . . . . . Trap 9 | . . . . 9 . . . . Miscellaneous . | . . . . . . . . . Route ------- -11/Scrapyard -10/Materials (discovered 3 exits: [*Mat] / [*Min] / [*Sub]) -10/Subcaves -8/Materials (discovered 2 exits: *Fac / Gar) -8/Garrison (discovered 3 exits: *Fac x3) -7/Factory -7/Garrison (discovered 3 exits: *Fac x3) -7/Factory -7/Garrison (discovered 1 exit: [*Fac]) History --------- Turn | Location | Event 8 | -11/Scrapyard | Discovered new exit (range 16) 144 | -11/Scrapyard | Entered Materials 145 | -10/Materials | Met a group of wandering Federalists 211 | -10/Materials | Discovered new exit (range 16) 262 | -10/Materials | Lost 3 allies 305 | -10/Materials | Build established: Mutant 323 | -10/Materials | Discovered new exit (range 13) 342 | -10/Materials | Discovered new exit (range 9) 349 | -10/Materials | Entered Subcaves 350 | -10/Subcaves | Continued accompanying wandering Federalists (1) 350 | -10/Subcaves | Approached by a straggling Scientist 375 | -10/Subcaves | Ambushed by Subdweller buried in earth 382 | -10/Subcaves | Core integrity fell below 50% 408 | -10/Subcaves | Learned location of Zion (-6) 408 | -10/Subcaves | Met a Zionite searching for "candidates" 510 | -10/Subcaves | Discovered new exit (range 13) 550 | -10/Subcaves | Entered Materials 550 | -8/Materials | Evolved 4 slots: Utility x2, Weapon x2 1168 | -8/Materials | Discovered new exit (range 5) 1178 | -8/Materials | Identified exit to Garrison 1178 | -8/Materials | Entered Garrison 1185 | -8/Garrison | Learned Factory security intel 1254 | -8/Garrison | Triggered checkpoint 1276 | -8/Garrison | Garrison Relay disabled 1290 | -8/Garrison | Build established: Gunner 1610 | -8/Garrison | Triggered checkpoint 1677 | -8/Garrison | Lost 3 parts (1p1n1u) 1690 | -8/Garrison | Triggered checkpoint 1718 | -8/Garrison | Triggered checkpoint 1756 | -8/Garrison | Triggered checkpoint 1870 | -8/Garrison | Triggered checkpoint 1947 | -8/Garrison | Build established: Scavenger-Gunner 2049 | -8/Garrison | Discovered new exit (range 9) 2165 | -8/Garrison | Discovered new exit (range 15) 2253 | -8/Garrison | Discovered new exit (range 66) 2253 | -8/Garrison | Discovered new exit (range 65) 2253 | -8/Garrison | Discovered new exit (range 17) 2291 | -8/Garrison | Garrison Relay disabled 2389 | -8/Garrison | Rescued a captive Derelict 2530 | -8/Garrison | Triggered checkpoint 2573 | -8/Garrison | Garrison Relay disabled 2682 | -8/Garrison | Installed Relay Interface Framework 2761 | -8/Garrison | Garrison Relay disabled 2860 | -8/Garrison | Entered Factory 2860 | -7/Factory | Accompanied by 1 ally 2860 | -7/Factory | Evolved 2 slots: Propulsion x2 2929 | -7/Factory | Identified exit to Garrison 2934 | -7/Factory | Entered Garrison 2934 | -7/Garrison | Accompanied by 1 ally 2965 | -7/Garrison | Triggered checkpoint 2988 | -7/Garrison | Garrison Relay disabled 3004 | -7/Garrison | Triggered checkpoint 3167 | -7/Garrison | Triggered checkpoint 3261 | -7/Garrison | Discovered new exit (range 12) 3282 | -7/Garrison | Triggered checkpoint 3293 | -7/Garrison | Garrison Relay disabled 3374 | -7/Garrison | Triggered checkpoint 3521 | -7/Garrison | Triggered checkpoint 3603 | -7/Garrison | Discovered new exit (range 10) 3632 | -7/Garrison | Triggered checkpoint 3673 | -7/Garrison | Lost 3 parts (1n2w) 3747 | -7/Garrison | Garrison Relay disabled 3848 | -7/Garrison | Triggered checkpoint 3929 | -7/Garrison | Expanded RIF knowledge: Zone Cloak 3942 | -7/Garrison | Garrison Relay disabled 3983 | -7/Garrison | Discovered new exit (range 14) 4045 | -7/Garrison | Entered Factory 4045 | -7/Factory | Accompanied by 1 ally 4223 | -7/Factory | Build established: Bothacker-Sprinter 4264 | -7/Factory | Lost 3 parts (1p1n1w) 4270 | -7/Factory | Identified exit to Garrison 4289 | -7/Factory | Entered Garrison 4341 | -7/Garrison | Garrison Relay disabled 4386 | -7/Garrison | P-60 Hacker assimilated allied Virus 4c 4437 | -7/Garrison | Core integrity fell below 50% 4457 | -7/Garrison | Lost 9 parts (1p3n2u3w) 4476 | -7/Garrison | Discovered new exit (range 15) 4484 | -7/Garrison | Core integrity fell below 20% 4489 | -7/Garrison | Destroyed by P-70 Sage with Tesla Rifle Last Messages --------------- 04462_ Field strength at 30. 04463_ Field strength at 24. 04464_ System corrupted: Matter fused (-6). 04464_ Field strength at 14. 04465_ Stasis field depleted. 04467_ Scythe destroyed. 04467_ Connecting with Garrison Terminal... >>Access(Emergency) Found 32 emergency access points. Map updated. 04467_ ALERT: Suspicious activity at Terminal G004. Transmitting hostile system tracking data. 04476_ EXIT=FOUND 04478_ Detecting nearby RIF Installer. 04483_ System corrupted: Matter fused (-8). 04483_ P-70 Sage springs to life. 04486_ Machine disabled. 04486_ RIF Installer disabled. 04487_ Machine disabled. Map ----- +----------------------------------------------------+ | ????????????????????????????# #??+?????????????? | | ????????????????????????????# #????????????????? | | ????????????????????????????# ##"""##### ?????? | | ????????????????????????????+ ????? | | ????????????????????????????+ ????? | | ????????????????????????????# ############?????? | | ????????????????????????????# #????????????????? | | ???????+????????????????????# #????????????????? | | ????????????????????????????# #????????????????? | | ????????????????????????????# #????????????????? | | ??+?????????????????????????# #????????????????? | | ????????????????????????????# #????????????????? | | ????????????????????????????# #????????????????? | | ????????????????????????????# #????????????????? | | ????????????????????????????# #????????????????? | | ????????????????????????????# #????????????????? | | ????????????????????????????# #????????????????? | | ????????????????????????????# #????????????????? | | ????????????????????????????# #????????????????? | | ????????????????????????????# #????????????????? | | ????????????????????????????# #????????????????? | | ????????????????????????????# #????????????????? | | ?????????????????????######## #????????????????? | | ?????????????????#####"""" ## #????????????????? | | ?????????????????#"""#" #????????????????? | | ?????????????????#" "#" @ ## #??????????????? | | ?????????????????#" "#"p ## < #??????????????? | | ?????????????????#" # ## #??????????????? | | ?????????????????# ########??????????????? | | ?????????????????# p #?????????????????????? | | ?????????????????#" "#?????????????????????? | | ?????????????????#""p """ "#?????????????????????? | | ?????????????????#"" "###""#?????????????????????? | | ?????????????????######?####?????????????????????? | | ?????????????????????????????????????????????????? | | ?????????????????????????????????????????????????? | | ?????????????????????????????????????????????????? | | ?????????????????????????????????????????????????? | | ?????????????????????????????????????????????????? | | | | | | | | | | | | | | | | | | | | | | | +----------------------------------------------------+ Best States ------------- Heat Dissipation 48 Energy Generation 14 Energy Capacity 265 Matter Stores 300 Matter Capacity 300 Sight Range 16 Terrain Scan Density 10 Armor Coverage 225 Evasion (%) 64 Targeting Accuracy 8 Recoil Reduction 4 Relay Coupler Types 4 Relay Coupler Value 89 Item Schematics ----------------- Gauss Rifle | -8/Materials | Scanalyzed Robot Schematics ------------------ None Fabricated ------------ Nothing Repaired ---------- Nothing Alien Tech Used ----------------- None Achievements -------------- Assimilation Complete Challenges ------------ None Game ------ Seed GhostGhostNukerbomber Manual? 0 Play Time 01:35:13 Cumulative 70.4 hours Start 2025.05.06 @ 19:43:59 End 2025.05.06 @ 21:20:16 Sessions 1 Manual Loads 0 Difficulty Rogue Special Mode None Game No. 58 Rogue 58 Adventurer 0 Explorer 0 Win Type - Total 0 Types 0/0/0/0/0/0/0/0/0/0 Lore% 25 Gallery% 37 Achievement% 40 Wizard Run 0 Options --------- Layout 1 ASCII 0 Keyboard 0 Movement Mouse Keybinds 0 Fullscreen 2 Font 24/X11 Map View 50x35 Zoom Use 0% Tactical HUD 1 Map Filters NONE Filters NONE Steam 1 RUN: 52451532-f8dc-42c6-8721-1b36839262d6